fUSD/lending_fUSD_20250113
["ID","MTS","AMOUNT","RATE_DAILY","PERIOD"]
[348724662,1736753440491,-504.4109369,9.999e-05,2]
[348724663,1736753440501,-644.16834226,9.999e-05,2]
[348724664,1736753440511,-502.12790914,9.999e-05,2]
[348724665,1736753440522,-500.0,9.999e-05,2]
[348724666,1736753440531,-229.89,9.999e-05,2]
[348724667,1736753440541,-521.54,9.999e-05,2]
[348724668,1736753440551,-500.0,9.999e-05,2]
[348724669,1736753440560,-500.0,9.999e-05,2]
[348724670,1736753440570,-503.96512999,9.999e-05,2]
[348724671,1736753440580,-500.0,9.999e-05,2]
[348724672,1736753440589,-500.0,9.999e-05,2]
[348724673,1736753440600,-427.81,9.999e-05,2]
[348724674,1736753440609,-500.0,9.999e-05,2]
[348724675,1736753440619,-574.81716959,9.999e-05,2]
[348724676,1736753440629,-500.0,9.999e-05,2]
[348724677,1736753440639,-500.0,9.999e-05,2]
[348724678,1736753440648,-500.0,9.999e-05,2]
[348724679,1736753440657,-500.0,9.999e-05,2]
[348724680,1736753440666,-302.11034489,9.999e-05,2]
[348724681,1736753440677,-500.0,9.999e-05,2]
[348724682,1736753440687,-512.41579649,9.999e-05,2]
[348724683,1736753440696,-500.0,9.999e-05,2]
[348724684,1736753440705,-500.0,9.999e-05,2]
[348724685,1736753440715,-502.29216107,9.999e-05,2]
[348724686,1736753440724,-604.13,9.999e-05,2]
[348724687,1736753440735,-500.0,9.999e-05,2]
[348724688,1736753440744,-500.0,9.999e-05,2]
[348724689,1736753440756,-591.06542342,9.999e-05,2]
[348724690,1736753440766,-500.0,9.999e-05,2]
[348724691,1736753440775,-506.84332705,9.999e-05,2]
[348724692,1736753440786,-500.0,9.999e-05,2]
[348724693,1736753440795,-500.0,9.999e-05,2]
[348724694,1736753440804,-500.0,9.999e-05,2]
[348724695,1736753440813,-500.0,9.999e-05,2]
[348724696,1736753440823,-500.0,9.999e-05,2]
[348724697,1736753440837,-500.0,9.999e-05,2]
[348724698,1736753440846,-500.0,9.999e-05,2]
[348724699,1736753440855,-486.78152509,9.999e-05,2]
[348724700,1736753440866,-500.0,9.999e-05,2]
[348724701,1736753440876,-500.0,9.999e-05,2]
[348724702,1736753440886,-500.0,9.999e-05,2]
[348724703,1736753440896,-518.2441143,9.999e-05,2]
[348724704,1736753440907,-500.0,9.999e-05,2]
[348724705,1736753440918,-275.5449494,9.999e-05,2]
[348724706,1736753440930,-185.21975647,9.999e-05,2]
[348724707,1736753440939,-249.91575048,9.999e-05,2]
[348724708,1736753440949,-641.45302227,9.999e-05,2]
[348724709,1736753440958,-509.6172584,9.999e-05,2]
[348724710,1736753440970,-500.0,9.999e-05,2]
[348724711,1736753440980,-500.0,9.999e-05,2]
[348724712,1736753440989,-500.0,9.999e-05,2]
[348724713,1736753441001,-500.0,9.999e-05,2]
[348724714,1736753441011,-500.0,9.999e-05,2]
[348724715,1736753441021,-500.0,9.999e-05,2]
[348724716,1736753441032,-500.0,9.999e-05,2]
[348724717,1736753441041,-500.0,9.999e-05,2]
[348724718,1736753441053,-500.0,9.999e-05,2]
[348724719,1736753441062,-500.0,9.999e-05,2]
[348724720,1736753441072,-500.0,9.999e-05,2]
[348724721,1736753441081,-500.0,9.999e-05,2]
[348724722,1736753441090,-500.0,9.999e-05,2]
[348724723,1736753441099,-339.58468097,9.999e-05,2]
[348724724,1736753441110,-500.0,9.999e-05,2]
[348724725,1736753441119,-500.0,9.999e-05,2]
[348724726,1736753441129,-500.0,9.999e-05,2]
[348724727,1736753441138,-500.0,9.999e-05,2]
[348724728,1736753441148,-302.3514128,9.999e-05,2]
[348724729,1736753441157,-500.0,9.999e-05,2]
[348724730,1736753441166,-500.0,9.999e-05,2]
[348724731,1736753441177,-500.0,9.999e-05,2]
[348724732,1736753441186,-514.10960007,9.999e-05,2]
[348724733,1736753441196,-500.0,9.999e-05,2]
[348724734,1736753441205,-500.0,9.999e-05,2]
[348724736,1736753441215,-358.57218891,9.999e-05,2]
[348724738,1736753441224,-1201.8217912,0.0001,2]
[348724762,1736753441565,-1361.1036991,0.0001,2]
[348724763,1736753442397,-434.63325232,9.897e-05,2]
[348724764,1736753442416,-65.36674768,9.897e-05,2]
[348724765,1736753442427,-501.07976742,9.999e-05,2]
[348724766,1736753442436,-8793.5534849,0.0001,2]
[348724767,1736753442451,-4843997.38485238,0.0001,2]
[348724768,1736753442464,-171.8011697,0.0001,2]
[348724769,1736753442473,-31126.3931421,0.0001,2]
[348724770,1736753442483,-30343.96491823,0.0001,2]
[348724771,1736753442493,-258495.63045901,0.0001,2]
[348724772,1736753442503,-2365.50496451,0.0001,2]
[348724773,1736753442513,-169.50872569,0.0001,2]
[348724774,1736753442523,-300.45,0.0001,2]
[348724775,1736753442533,-200.0,0.0001,2]
[348724776,1736753442543,-229.64,0.0001,2]
[348724777,1736753442553,-2000.0,0.0001,2]
[348724778,1736753442562,-200.0,0.0001,2]
[348724779,1736753442572,-2000.0,0.0001,2]
[348724780,1736753442582,-2483244.12140436,0.0001,2]
[348724781,1736753442595,-200.0,0.0001,2]
[348724782,1736753442604,-7015.1379887,0.0001,2]
[348724783,1736753442614,-331.65505043,0.0001,2]
[348724784,1736753442623,-7312.62577763,0.0001,2]
[348724785,1736753442631,-459.37740957,0.0001,2]
[348724786,1736753442640,-6940.37343003,0.0001,2]
[348724787,1736753442649,-275.26629795,0.0001,2]
[348724788,1736753442658,-1000.0,0.0001,3]
[348724789,1736753442668,-658.2689816,0.0001,2]
[348724790,1736753442678,-8298409.13293491,0.0001,2]
[348724791,1736753442689,-1100.0,0.0001,2]
[348724792,1736753442700,-15200.0,0.0001,2]
[348724793,1736753442712,-937.24511586,0.0001,2]
[348724794,1736753442726,-852.99136144,0.0001,2]
[348724795,1736753442958,-343.88842845,0.0001,2]
[348724796,1736753442970,-350.26039682,0.0001,2]
[348724800,1736753443034,-651.0,0.0001,2]
[348724802,1736753443045,-1294.71049852,0.0001,2]
[348724828,1736753443501,-1000.0,9.798e-05,2]
[348724829,1736753443511,-500.0,9.897e-05,2]
[348724830,1736753443520,-500.0,9.897e-05,2]
[348724831,1736753443529,-11122.49974422,0.0001,2]
[348724832,1736753443626,-652.519868,0.0001,2]
[348724833,1736753443650,-16596.03911154,0.0001,2]
[348724834,1736753443690,-14.61621808,0.0001,2]
[348724835,1736753443786,-1171.41798,0.0001,2]
[348724836,1736753443798,-597921.5111213,0.0001,2]
[348724888,1736753446282,-1877.56704563,9.897e-05,2]
[348724889,1736753446304,-986.30146054,9.897e-05,2]
[348724890,1736753446344,-58.84481602,9.897e-05,2]
[348724891,1736753446371,-1432.77667781,9.897e-05,2]
[348724892,1736753446381,-500.0,9.897e-05,2]
[348724893,1736753446390,-586.18,9.897e-05,2]
[348724894,1736753446400,-470.42309206,9.897e-05,2]
[348724895,1736753446409,-1852.49,9.897e-05,2]
[348724896,1736753446419,-361.47376988,9.897e-05,2]
[348724897,1736753446429,-2309.35789272,0.0001,2]
[348724898,1736753446442,-2002.15057168,0.0001,2]
[348724899,1736753446453,-128428.85737757,0.0001,2]
[348724900,1736753446647,-5771.60791159,0.0001,2]
[348724906,1736753936320,287.92,8.527e-05,2]
[348724910,1736754118142,292.05,7.397e-05,2]
[348724911,1736754146060,200.0,7.466e-05,2]
[348724912,1736754373959,1348.61,8.219e-05,2]
[348724913,1736754376301,200.0,7.033e-05,2]
[348724915,1736754490167,200.0,6.951e-05,2]
[348724917,1736754547155,-1232.51,8.531e-05,2]
[348724918,1736754547176,-1000.0,8.537e-05,2]
[348724919,1736754547197,-305.64,8.541e-05,2]
[348724920,1736754547219,-548.74,8.579e-05,2]
[348724921,1736754547240,-200.0,8.581e-05,2]
[348724922,1736754547265,-300.0,8.599e-05,2]
[348724923,1736754547285,-378.5918,8.6e-05,2]
[348724924,1736754581335,621.4082,8.1e-05,2]
[348724928,1736754626257,1715.0,8.1e-05,2]
[348724934,1736754632480,-157.21097324,8.557e-05,2]
[348724935,1736754632490,-1000.0,8.6e-05,2]
[348724936,1736754632501,-160.9,8.607e-05,2]
[348724937,1736754632511,-477.688095,8.63e-05,2]
[348724938,1736754632521,-179.13,8.673e-05,2]
[348724939,1736754632530,-169.6,8.673e-05,2]
[348724940,1736754632539,-400.53,8.717e-05,2]
[348724941,1736754632549,-247.49,8.755e-05,2]
[348724942,1736754632559,-150.0,8.849e-05,2]
[348724943,1736754632569,-300.0,8.866e-05,2]
[348724944,1736754632580,-14581.12,8.867e-05,2]
[348724945,1736754632591,-232.8,8.946e-05,2]
[348724946,1736754632600,-250.0,9.071e-05,2]
[348724947,1736754632610,-250.0,9.135e-05,2]
[348724948,1736754632619,-250.0,9.154e-05,2]
[348724949,1736754632629,-7864.74180125,9.162e-05,2]
[348724950,1736754632638,-1000.0,9.2e-05,2]
[348724951,1736754632648,-923.3,9.235e-05,2]
[348724952,1736754632659,-500.0,9.479e-05,2]
[348724953,1736754632669,-169.6,9.541e-05,2]
[348724954,1736754632679,-1000.0,9.604e-05,2]
[348724955,1736754632689,-548.74,9.652e-05,2]
[348724956,1736754632699,-505.66717415,9.659e-05,2]
[348724957,1736754632709,-420.0,9.752e-05,2]
[348724958,1736754632718,-500.0,9.798e-05,2]
[348724959,1736754632727,-1711.00780964,9.805e-05,2]
[348724960,1736754632737,-150.0,9.863e-05,2]
[348724961,1736754632746,-500.0,9.863e-05,2]
[348724962,1736754632757,-3686.27,9.895e-05,2]
[348724963,1736754632766,-218.385,9.895e-05,2]
[348724964,1736754632776,-1811.13,9.896e-05,2]
[348724965,1736754632785,-791.1,9.896e-05,2]
[348724966,1736754632796,-838.07,9.896e-05,2]
[348724967,1736754632806,-684.1,9.896e-05,2]
[348724969,1736754632816,-500.0,9.896e-05,2]
[348724970,1736754632825,-842.12,9.896e-05,2]
[348724972,1736754632835,-561.75,9.896e-05,2]
[348724974,1736754632843,-761.74,9.896e-05,2]
[348724976,1736754632853,-624.04,9.896e-05,2]
[348724978,1736754632862,-994.62,9.896e-05,2]
[348724980,1736754632872,-1234.57,9.896e-05,2]
[348724982,1736754632882,-1239.29,9.896e-05,2]
[348724984,1736754632891,-2277.93,9.896e-05,2]
[348724986,1736754632901,-3505.73,9.896e-05,2]
[348724988,1736754632910,-697.48,9.896e-05,2]
[348724990,1736754632919,-606.08,9.896e-05,2]
[348724991,1736754632928,-500.0,9.896e-05,2]
[348724993,1736754632938,-1622.8,9.896e-05,2]
[348724996,1736754632948,-600.38,9.896e-05,2]
[348724998,1736754632958,-1646.76,9.896e-05,2]
[348725000,1736754632967,-939.15,9.896e-05,2]
[348725002,1736754632976,-500.0,9.896e-05,2]
[348725004,1736754632986,-580.46,9.896e-05,2]
[348725006,1736754632995,-963.53,9.896e-05,2]
[348725008,1736754633004,-850.4,9.896e-05,2]
[348725010,1736754633014,-500.0,9.896e-05,2]
[348725012,1736754633023,-1000.0,9.896e-05,2]
[348725014,1736754633033,-556.44,9.896e-05,2]
[348725016,1736754633043,-500.0,9.897e-05,2]
[348725017,1736754633053,-500.0,9.897e-05,2]
[348725019,1736754633063,-500.0,9.897e-05,2]
[348725021,1736754633072,-514.20872779,9.897e-05,2]
[348725023,1736754633081,-500.0,9.897e-05,2]
[348725025,1736754633090,-500.0,9.897e-05,2]
[348725027,1736754633100,-503.32764908,9.897e-05,2]
[348725029,1736754633109,-500.0,9.897e-05,2]
[348725031,1736754633118,-565.33786348,9.897e-05,2]
[348725033,1736754633128,-515.32823202,9.897e-05,2]
[348725035,1736754633137,-500.0,9.897e-05,2]
[348725037,1736754633146,-535.32,9.897e-05,2]
[348725039,1736754633155,-505.96196802,9.897e-05,2]
[348725041,1736754633165,-506.49161331,9.897e-05,2]
[348725043,1736754633174,-500.0,9.897e-05,2]
[348725045,1736754633184,-500.0,9.897e-05,2]
[348725047,1736754633194,-553.86,9.897e-05,2]
[348725049,1736754633203,-506.03841315,9.897e-05,2]
[348725050,1736754633213,-500.0,9.897e-05,2]
[348725051,1736754633223,-504.44033227,9.897e-05,2]
[348725052,1736754633233,-500.0,9.897e-05,2]
[348725053,1736754633243,-500.0,9.897e-05,2]
[348725054,1736754633253,-500.0,9.897e-05,2]
[348725055,1736754633263,-426.45937678,9.897e-05,2]
[348725056,1736754633272,-500.0,9.897e-05,2]
[348725057,1736754633282,-500.0,9.897e-05,2]
[348725058,1736754633292,-500.0,9.897e-05,2]
[348725059,1736754633302,-500.0,9.897e-05,2]
[348725060,1736754633311,-254.94285666,9.897e-05,2]
[348725061,1736754633321,-538.86,9.897e-05,2]
[348725062,1736754633331,-500.0,9.897e-05,2]
[348725063,1736754633341,-500.0,9.897e-05,2]
[348725064,1736754633350,-500.0,9.897e-05,2]
[348725065,1736754633360,-500.0,9.897e-05,2]
[348725066,1736754633369,-500.0,9.897e-05,2]
[348725067,1736754633379,-500.0,9.897e-05,2]
[348725068,1736754633389,-553.74788161,9.897e-05,2]
[348725069,1736754633398,-507.28530067,9.897e-05,2]
[348725070,1736754633407,-500.0,9.897e-05,2]
[348725071,1736754633417,-500.0,9.897e-05,2]
[348725072,1736754633427,-500.0,9.897e-05,2]
[348725073,1736754633436,-500.0,9.897e-05,2]
[348725074,1736754633446,-635.17075658,9.897e-05,2]
[348725075,1736754633456,-310.85598762,9.897e-05,2]
[348725076,1736754633466,-506.38569865,9.897e-05,2]
[348725077,1736754633476,-500.0,9.897e-05,2]
[348725078,1736754633486,-500.0,9.897e-05,2]
[348725079,1736754633495,-500.0,9.897e-05,2]
[348725080,1736754633506,-500.0,9.897e-05,2]
[348725081,1736754633516,-500.0,9.897e-05,2]
[348725082,1736754633525,-604.9,9.897e-05,2]
[348725083,1736754633535,-500.0,9.897e-05,2]
[348725084,1736754633544,-500.0,9.897e-05,2]
[348725085,1736754633554,-508.63749315,9.897e-05,2]
[348725086,1736754633564,-687.18,9.897e-05,2]
[348725087,1736754633579,-629.19,9.897e-05,2]
[348725088,1736754633588,-510.97849833,9.897e-05,2]
[348725089,1736754633597,-500.0,9.897e-05,2]
[348725090,1736754633607,-500.0,9.897e-05,2]
[348725091,1736754633618,-500.0,9.897e-05,2]
[348725092,1736754633628,-500.0,9.897e-05,2]
[348725093,1736754633638,-500.0,9.897e-05,2]
[348725094,1736754633650,-500.0,9.897e-05,2]
[348725095,1736754633660,-500.0,9.897e-05,2]
[348725096,1736754633670,-500.0,9.897e-05,2]
[348725097,1736754633680,-500.0,9.897e-05,2]
[348725098,1736754633689,-500.0,9.897e-05,2]
[348725099,1736754633699,-500.0,9.897e-05,2]
[348725100,1736754633708,-500.0,9.897e-05,2]
[348725101,1736754633717,-500.0,9.897e-05,2]
[348725102,1736754633727,-500.0,9.897e-05,2]
[348725103,1736754633736,-500.0,9.897e-05,2]
[348725104,1736754633746,-586.83,9.897e-05,2]
[348725105,1736754633756,-500.0,9.897e-05,2]
[348725106,1736754633765,-500.0,9.897e-05,2]
[348725107,1736754633775,-500.0,9.897e-05,2]
[348725108,1736754633785,-1533.31,9.897e-05,2]
[348725109,1736754633794,-500.0,9.897e-05,2]
[348725110,1736754633804,-500.0,9.897e-05,2]
[348725111,1736754633813,-500.0,9.897e-05,2]
[348725112,1736754633823,-585.33,9.897e-05,2]
[348725113,1736754633832,-500.0,9.897e-05,2]
[348725114,1736754633843,-1052.64,9.897e-05,2]
[348725115,1736754633852,-1938.6,9.897e-05,2]
[348725116,1736754633861,-691.3,9.897e-05,2]
[348725117,1736754633871,-500.0,9.897e-05,2]
[348725118,1736754633880,-500.0,9.897e-05,2]
[348725119,1736754633889,-684.59,9.897e-05,2]
[348725120,1736754633899,-500.0,9.897e-05,2]
[348725121,1736754633909,-500.0,9.897e-05,2]
[348725122,1736754633919,-500.0,9.897e-05,2]
[348725123,1736754633929,-500.0,9.897e-05,2]
[348725124,1736754633939,-2516.75,9.897e-05,2]
[348725125,1736754633949,-779.49,9.897e-05,2]
[348725126,1736754633959,-500.0,9.897e-05,2]
[348725127,1736754633969,-716.11,9.897e-05,2]
[348725128,1736754633983,-500.0,9.897e-05,2]
[348725129,1736754633993,-733.27,9.897e-05,2]
[348725130,1736754634004,-618.02043607,9.897e-05,2]
[348725137,1736754638503,-500.08956393,9.897e-05,2]
[348725138,1736754638513,-500.0,9.897e-05,2]
[348725139,1736754638522,-483.80286335,9.897e-05,2]
[348725140,1736754638551,-16.19713665,9.897e-05,2]
[348725141,1736754638561,-217.506298,9.897e-05,2]
[348725142,1736754638572,-500.0,9.897e-05,2]
[348725143,1736754638583,-500.0,9.897e-05,2]
[348725144,1736754638593,-500.0,9.897e-05,2]
[348725145,1736754638602,-1755.67,9.897e-05,2]
[348725146,1736754638611,-500.0,9.897e-05,2]
[348725147,1736754638620,-1115.1,9.897e-05,2]
[348725148,1736754638629,-881.4,9.897e-05,2]
[348725149,1736754638638,-686.27,9.897e-05,2]
[348725150,1736754638648,-1011.51,9.897e-05,2]
[348725151,1736754638659,-937.45,9.897e-05,2]
[348725152,1736754638668,-500.0,9.897e-05,2]
[348725153,1736754638677,-1286.18,9.897e-05,2]
[348725154,1736754638687,-949.29,9.897e-05,2]
[348725155,1736754638697,-767.32,9.897e-05,2]
[348725156,1736754638706,-356.8812974,9.898e-05,2]
[348725157,1736754638716,-500.0,9.898e-05,2]
[348725158,1736754638725,-500.0,9.898e-05,2]
[348725159,1736754638734,-500.0,9.898e-05,2]
[348725160,1736754638743,-500.0,9.898e-05,2]
[348725161,1736754638754,-500.0,9.898e-05,2]
[348725162,1736754638763,-500.0,9.898e-05,2]
[348725164,1736754638772,-500.0,9.898e-05,2]
[348725166,1736754638781,-506.86904733,9.898e-05,2]
[348725168,1736754638791,-501.15925114,9.898e-05,2]
[348725170,1736754638801,-500.0,9.898e-05,2]
[348725172,1736754638810,-500.0,9.898e-05,2]
[348725174,1736754638820,-500.0,9.898e-05,2]
[348725176,1736754638830,-500.0,9.898e-05,2]
[348725178,1736754638839,-500.0,9.898e-05,2]
[348725180,1736754638848,-505.2715018,9.898e-05,2]
[348725181,1736754638857,-507.71328639,9.898e-05,2]
[348725183,1736754638866,-500.0,9.898e-05,2]
[348725185,1736754638876,-500.0,9.898e-05,2]
[348725187,1736754638885,-420.23748496,9.898e-05,2]
[348725189,1736754638894,-623.81849297,9.898e-05,2]
[348725191,1736754638903,-500.0,9.898e-05,2]
[348725193,1736754638912,-500.0,9.898e-05,2]
[348725195,1736754638921,-500.0,9.898e-05,2]
[348725197,1736754638930,-500.0,9.898e-05,2]
[348725199,1736754638939,-500.0,9.898e-05,2]
[348725201,1736754638948,-495.04422949,9.898e-05,2]
[348725203,1736754638958,-500.0,9.898e-05,2]
[348725205,1736754638968,-500.0,9.898e-05,2]
[348725207,1736754638978,-500.7522919,9.898e-05,2]
[348725209,1736754638987,-549.12945063,9.898e-05,2]
[348725211,1736754638997,-500.0,9.898e-05,2]
[348725213,1736754639007,-500.0,9.898e-05,2]
[348725215,1736754639016,-500.0,9.898e-05,2]
[348725217,1736754639025,-500.0,9.898e-05,2]
[348725219,1736754639035,-504.33834122,9.898e-05,2]
[348725221,1736754639045,-500.0,9.898e-05,2]
[348725223,1736754639054,-500.0,9.898e-05,2]
[348725225,1736754639064,-365.96699181,9.898e-05,2]
[348725227,1736754639073,-540.32,9.898e-05,2]
[348725229,1736754639083,-500.0,9.898e-05,2]
[348725231,1736754639092,-500.0,9.898e-05,2]
[348725233,1736754639101,-173.34258092,9.898e-05,2]
[348725235,1736754639110,-500.0,9.898e-05,2]
[348725237,1736754639120,-482.57842584,9.898e-05,2]
[348725239,1736754639129,-500.0,9.898e-05,2]
[348725241,1736754639138,-500.0,9.898e-05,2]
[348725243,1736754639148,-500.0,9.898e-05,2]
[348725245,1736754639157,-526.59,9.898e-05,2]
[348725247,1736754639166,-500.0,9.898e-05,2]
[348725249,1736754639176,-644.86935924,9.898e-05,2]
[348725251,1736754639185,-151.56,9.898e-05,2]
[348725253,1736754639195,-500.0,9.898e-05,2]
[348725255,1736754639205,-515.65162884,9.898e-05,2]
[348725257,1736754639214,-500.0,9.898e-05,2]
[348725259,1736754639223,-918.99,9.898e-05,2]
[348725260,1736754639232,-500.0,9.898e-05,2]
[348725262,1736754639242,-500.0,9.898e-05,2]
[348725264,1736754639251,-500.0,9.898e-05,2]
[348725267,1736754639262,-500.0,9.898e-05,2]
[348725269,1736754639271,-500.0,9.898e-05,2]
[348725271,1736754639281,-505.83655482,9.898e-05,2]
[348725272,1736754639290,-1733.87,9.898e-05,2]
[348725274,1736754639300,-1207.16,9.898e-05,2]
[348725277,1736754639310,-840.93,9.898e-05,2]
[348725279,1736754639320,-500.0,9.898e-05,2]
[348725281,1736754639330,-1216.06,9.898e-05,2]
[348725282,1736754639339,-2002.45,9.898e-05,2]
[348725284,1736754639348,-488.33283326,9.898e-05,2]
[348725286,1736754639358,-729.29,9.898e-05,2]
[348725289,1736754639367,-590.87,9.898e-05,2]
[348725291,1736754639377,-500.0,9.898e-05,2]
[348725293,1736754639387,-402.28535036,9.898e-05,2]
[348725295,1736754639397,-500.0,9.898e-05,2]
[348725297,1736754639406,-500.0,9.898e-05,2]
[348725298,1736754639415,-711.23,9.898e-05,2]
[348725300,1736754639424,-1148.16,9.898e-05,2]
[348725302,1736754639434,-500.0,9.898e-05,2]
[348725304,1736754639443,-1353.35,9.898e-05,2]
[348725305,1736754639452,-500.0,9.898e-05,2]
[348725307,1736754639461,-500.0,9.898e-05,2]
[348725309,1736754639471,-591.28,9.898e-05,2]
[348725311,1736754639480,-507.77,9.898e-05,2]
[348725312,1736754639489,-675.88,9.898e-05,2]
[348725314,1736754639498,-1646.81,9.898e-05,2]
[348725316,1736754639508,-667.37,9.898e-05,2]
[348725318,1736754639516,-500.0,9.898e-05,2]
[348725320,1736754639527,-500.0,9.898e-05,2]
[348725321,1736754639536,-500.0,9.898e-05,2]
[348725323,1736754639546,-500.0,9.898e-05,2]
[348725325,1736754639555,-5000.0,9.898e-05,2]
[348725327,1736754639565,-64824.55660193,9.899e-05,2]
[348725329,1736754639576,-987.99704598,9.9e-05,2]
[348725330,1736754639585,-153.9426865,9.9e-05,2]
[348725332,1736754639595,-300.9,9.944e-05,2]
[348725334,1736754639604,-18186.29930427,9.968e-05,2]
[348725336,1736754639615,-500.0,9.973e-05,2]
[348725338,1736754639624,-500.0,9.979e-05,2]
[348725339,1736754639633,-2010.16,9.99e-05,2]
[348725341,1736754639642,-1315.81,9.997e-05,2]
[348725343,1736754639652,-4330.27,9.997e-05,2]
[348725345,1736754639661,-500.0,9.997e-05,2]
[348725346,1736754639670,-532.02,9.997e-05,2]
[348725348,1736754639679,-789.66,9.997e-05,2]
[348725350,1736754639689,-5052.17,9.997e-05,2]
[348725352,1736754639698,-1550.3,9.997e-05,2]
[348725354,1736754639707,-873.34,9.997e-05,2]
[348725356,1736754639717,-633.60355964,9.997e-05,2]
[348725357,1736754639726,-2120.68,9.997e-05,2]
[348725359,1736754639736,-562.36,9.997e-05,2]
[348725361,1736754639745,-618.14,9.997e-05,2]
[348725363,1736754639755,-546.93,9.997e-05,2]
[348725364,1736754639763,-1167.47,9.997e-05,2]
[348725366,1736754639772,-935.9,9.997e-05,2]
[348725367,1736754639782,-525.9,9.997e-05,2]
[348725368,1736754639791,-500.0,9.997e-05,2]
[348725369,1736754639800,-500.0,9.997e-05,2]
[348725370,1736754639810,-2549.77,9.997e-05,2]
[348725371,1736754639819,-507.37834865,9.998e-05,2]
[348725372,1736754639828,-592.82229923,9.998e-05,2]
[348725373,1736754639838,-504.3336612,9.998e-05,2]
[348725374,1736754639849,-504.78747258,9.998e-05,2]
[348725375,1736754639861,-271.6110536,9.998e-05,2]
[348725376,1736754639871,-501.16790683,9.998e-05,2]
[348725377,1736754639880,-504.35671074,9.998e-05,2]
[348725378,1736754639890,-169.42972097,9.998e-05,2]
[348725379,1736754639901,-500.0,9.998e-05,2]
[348725380,1736754639910,-500.0,9.998e-05,2]
[348725381,1736754639919,-500.0,9.998e-05,2]
[348725382,1736754639929,-706.07,9.998e-05,2]
[348725383,1736754639938,-500.0,9.998e-05,2]
[348725384,1736754639947,-506.28796639,9.998e-05,2]
[348725385,1736754639957,-500.0,9.998e-05,2]
[348725386,1736754639966,-625.36,9.998e-05,2]
[348725387,1736754639975,-517.06,9.998e-05,2]
[348725388,1736754639984,-500.0,9.998e-05,2]
[348725389,1736754639994,-500.0,9.998e-05,2]
[348725390,1736754640005,-503.58065851,9.998e-05,2]
[348725391,1736754640014,-504.52140238,9.998e-05,2]
[348725392,1736754640023,-500.0,9.998e-05,2]
[348725393,1736754640032,-500.0,9.998e-05,2]
[348725394,1736754640041,-503.7986501,9.998e-05,2]
[348725395,1736754640050,-500.0,9.998e-05,2]
[348725396,1736754640059,-453.82927665,9.998e-05,2]
[348725397,1736754640069,-504.695144,9.998e-05,2]
[348725398,1736754640078,-502.73397628,9.998e-05,2]
[348725399,1736754640088,-500.0,9.998e-05,2]
[348725400,1736754640097,-501.87598172,9.998e-05,2]
[348725401,1736754640107,-500.0,9.998e-05,2]
[348725402,1736754640117,-509.61114848,9.998e-05,2]
[348725403,1736754640126,-505.19160644,9.998e-05,2]
[348725404,1736754640135,-500.0,9.998e-05,2]
[348725405,1736754640144,-500.0,9.998e-05,2]
[348725406,1736754640153,-506.19760376,9.998e-05,2]
[348725407,1736754640162,-501.45300656,9.998e-05,2]
[348725408,1736754640171,-500.0,9.998e-05,2]
[348725410,1736754640180,-500.0,9.998e-05,2]
[348725411,1736754640189,-500.0,9.998e-05,2]
[348725412,1736754640199,-502.05378049,9.998e-05,2]
[348725413,1736754640209,-500.0,9.998e-05,2]
[348725414,1736754640218,-540.93,9.998e-05,2]
[348725416,1736754640226,-518.59540817,9.998e-05,2]
[348725417,1736754640235,-500.0,9.998e-05,2]
[348725418,1736754640245,-500.0,9.998e-05,2]
[348725420,1736754640254,-500.0,9.998e-05,2]
[348725422,1736754640263,-578.96,9.998e-05,2]
[348725423,1736754640273,-500.0,9.998e-05,2]
[348725424,1736754640284,-162.08822947,9.998e-05,2]
[348725425,1736754640295,-501.76576356,9.998e-05,2]
[348725426,1736754640305,-500.0,9.998e-05,2]
[348725427,1736754640314,-500.0,9.998e-05,2]
[348725428,1736754640324,-505.51451093,9.998e-05,2]
[348725429,1736754640333,-500.0,9.998e-05,2]
[348725430,1736754640343,-500.0,9.998e-05,2]
[348725431,1736754640352,-500.0,9.998e-05,2]